Cogmind - Beta 11 --- EXPLORER MODE // 2022.04.05 @ 14:03:37 Player: Benkyo Result: Destroyed by DAS Turret with DAS Cannon Performance ------------- Evolutions (0) 0 Regions Visited (3) 600 Robots Destroyed (19) 95 Value Destroyed (386) 386 Prototype IDs (27) 540 Alien Tech Used (0) 0 Bonus (-245) -245 TOTAL SCORE: 1376 Bonus ------- Aligned with FarCom 300 Friendly Fire -545 Cogmind --------- Core Integrity 0/250 Matter 34/300 Energy 98/100 System Corruption 1% Temperature Cool (0) Movement Core (50) Location -10/Exiles Parts ------- > --- POWER (1) -------- (None) > --- PROPULSION (2) --- (None) > --- UTILITY (3) ------ (None) > --- WEAPON (2) ------- (None) > --- INVENTORY (5) ---- Light Nuclear Core 0b10 Alert Chip Supersonic Drone Bay (1/1) Grenade Launcher Rocket Launcher Peak State ------------ > --- POWER ------------ Ion Engine > --- PROPULSION ------- Light Treads Light Treads > --- UTILITY ---------- Medium Storage Unit High-capacity Matter Pod Light Armor Plating > --- WEAPON ----------- Assault Rifle Assault Rifle > --- INVENTORY -------- Light Nuclear Core 0b10 Alert Chip Utility Shielding Supersonic Drone Bay Light Assault Rifle Grenade Launcher Rocket Launcher Deploy-a-Sentry Deploy-a-Sentry Deploy-a-Sentry [Rating: 12] Favorites ----------- Power Ion Engine Engine Ion Engine Propulsion Light Treads Treads Light Treads Utility Medium Storage Unit Storage Medium Storage Unit Processor Targeting Computer Protection Light Armor Plating Weapon Assault Rifle Ballistic Gun Assault Rifle Launcher Rocket Launcher Build | -11 -10 -10 -10 ------- Run | Scr Mat Min Exi Slots Evolved 1 | . 1 . . Power . | . . . . Propulsion . | . . . . Utility 1 | . 1 . . Weapon . | . . . . Parts Attached 20 | 6 7 1 6 Power 2 | 1 1 . . Engine 2 | 1 1 . . Core . | . . . . Reactor . | . . . . Propulsion 3 | 2 1 . . Treads 3 | 2 1 . . Leg . | . . . . Wheel . | . . . . Hover . | . . . . Flight . | . . . . Utility 7 | 2 2 1 2 Device . | . . . . Storage 2 | 1 . . 1 Processor 1 | . 1 . . Hackware . | . . . . Protection 4 | 1 1 1 1 Artifact . | . . . . Weapon 8 | 1 3 . 4 Energy Gun . | . . . . Energy Cannon . | . . . . Ballistic Gun 6 | 1 3 . 2 Ballistic Cannon . | . . . . Launcher 2 | . . . 2 Special Weapon . | . . . . Impact Weapon . | . . . . Slashing Weapon . | . . . . Piercing Weapon . | . . . . Special Melee Weapon . | . . . . Unidentified Prototypes . | . . . . Parts Lost 6 | . . 1 5 Power 1 | . . . 1 Propulsion 1 | . . . 1 Utility 2 | . . 1 1 Weapon 2 | . . . 2 Highest Loss Streak 3 | . . 1 3 To Critical Strikes 4 | . . . 4 Average Slot Usage (%) 97 | . 98 100 89 Engine 11 | . 11 12 9 Treads 24 | . 24 25 20 Storage 13 | . 12 12 19 Processor 10 | . 11 12 3 Protection 11 | . 12 12 11 Ballistic Gun 24 | . 24 25 21 Naked Turns 24 | . . . 24 Heaviest Build 26 | 18 22 22 26 Greatest Support 40 | 40 40 40 40 Greatest Overweight (x) 1 | . . . 1 Average Overweight (x) . | . . . . Largest Inventory Capacity 10 | 10 10 10 10 Average Capacity 9 | 8 10 10 9 Most Carried 10 | 8 10 10 10 Average Carried 8 | 5 8 9 8 Final Capacity 10 | 10 10 10 5 Final Carried 10 | 8 10 9 5 Class Distribution -------------------- 100% | Hacker-Mutant Dominant Class ---------------- Hacker-Mutant | -10/Materials Hacker-Mutant | -10/Mines Hacker-Mutant | -10/Exiles Resources | -11 -10 -10 -10 ----------- Run | Scr Mat Min Exi Matter Collected 904 | 197 414 240 53 Remotely . | . . . . Salvage Created 587 | . 267 280 40 Parts 32 | . 15 15 2 Haulers Intercepted . | . . . . Recyclers Shooed . | . . . . Parts Field Recycled . | . . . . Retrieved Matter . | . . . . Parts Self-Destructed . | . . . . Prevented . | . . . . Kills | -11 -10 -10 -10 ------- Run | Scr Mat Min Exi Combat Hostiles Destroyed 15 | . 6 6 3 Guns 12 | . 6 6 . AOE 3 | . . . 3 Classes Destroyed 8 | . 4 2 2 Worker 1 | . . 1 . Tunneler 2 | . . 2 . Recycler 1 | . 1 . . Watcher 2 | . 2 . . Swarmer 6 | . 4 2 . Grunt 6 | . 2 4 . Zionite 1 | . . . 1 Assembled 6 | . . . 6 Best Kill Streak 3 | . 2 3 3 Combat Bots Only 3 | . 2 2 3 Max Kills in Single Turn 3 | . 2 1 3 Gunslinging 1 | . 1 . . Exploded 2 | . . . 2 Melee . | . . . . Uniques/NPCs Destroyed . | . . . . Combat | -11 -10 -10 -10 -------- Run | Scr Mat Min Exi Damage Taken 1023 | . 111 257 655 Core 275 | . 18 53 204 Absorbed by Shields . | . . . . Regen/Repaired (Parts) 47 | . 47 . . Core Remaining (%) 100 | 100 . . . Volleys Fired 109 | . 21 27 61 Largest 2 | . 2 2 2 Hottest 53 | . 40 40 53 Shots Fired 201 | . 38 55 108 Gun 177 | . 38 55 84 Cannon . | . . . . Launcher 24 | . . . 24 Special . | . . . . Kinetic 177 | . 38 55 84 Thermal . | . . . . Explosive 24 | . . . 24 Electromagnetic . | . . . . Robot Hit Streak 38 | . 14 18 38 Robot Miss Streak 3 | . 3 1 1 Penetration Max . | . . . . Secondary Targets 4 | . 2 2 . Max Gunslinging Chain 1 | . 1 1 . Shots Hit Robots 175 | . 28 43 104 Core Hits 62 | . 14 15 33 Critical Kills . | . . . . Critical Parts Destroyed . | . . . . Critical Strikes 1 | . . . 1 Destroy 1 | . . . 1 Melee Attacks . | . . . . Impact . | . . . . Slashing . | . . . . Piercing . | . . . . Sneak Attacks . | . . . . Combat Hostiles . | . . . . Follow-up Attacks . | . . . . Damage Inflicted 2334 | . 392 527 1415 Guns 1850 | . 392 527 931 Cannons . | . . . . Explosions 484 | . . . 484 Melee . | . . . . Ramming . | . . . . Kinetic 1850 | . 392 527 931 Thermal . | . . . . Explosive 484 | . . . 484 Electromagnetic . | . . . . Impact . | . . . . Slashing . | . . . . Piercing . | . . . . Highest Corruption 1 | . 1 1 1 Average Corruption 1 | . 1 1 1 Corruption Purged . | . . . . Corruption Blocked . | . . . . Effects 17 | . 4 6 7 Message Errors 4 | . 2 . 2 Matter Fused 3 | . 2 1 . Heat Flow Errors 3 | . . 2 1 Energy Discharges 2 | . . 1 1 Parts Rejected 1 | . . . 1 Data Loss (minor) 2 | . . 1 1 Misfires 1 | . . 1 . Alerts 1 | . . . 1 Overload Shots . | . . . . Overflow Damage 9 | . . . 9 Projectiles . | . . . . Explosions 9 | . . . 9 Melee . | . . . . Knockbacks . | . . . . Impact . | . . . . Kinetic . | . . . . Secondary . | . . . . Self-Inflicted Damage . | . . . . Shots . | . . . . Rammed . | . . . . Targets Rammed . | . . . . Kicked . | . . . . Crushed . | . . . . Highest Temperature 139 | . 2 139 111 Average Temperature 35 | . 1 34 56 Received Heat Transfer 273 | . 48 225 . Siege Activations . | . . . . Robots Corrupted . | . . . . Combat Hostiles . | . . . . Parts Fried . | . . . . Impact Corruptions . | . . . . Robots Melted . | . . . . Combat Hostiles . | . . . . Parts Melted . | . . . . Heat Transferred . | . . . . Parts Sabotaged . | . . . . Parts Stolen . | . . . . Parts Stripped . | . . . . Power Chain Reactions . | . . . . Missiles Intercepted . | . . . . Alert | -11 -10 -10 -10 ------- Run | Scr Mat Min Exi Peak Influence 133 | . 133 60 . Initial . | . . . . Average 29 | . 36 24 . Maximum Alert Level . | . . . . Low Security (%) 100 | 100 100 100 . Level 1 . | . . . . Level 2 . | . . . . Level 3 . | . . . . Level 4 . | . . . . Level 5 . | . . . . High Security . | . . . . Max Security . | . . . . Squads Dispatched . | . . . . Investigation . | . . . . Extermination . | . . . . Reinforcement . | . . . . Assault . | . . . . Garrison . | . . . . Intercept . | . . . . Searches Triggered . | . . . . Construction Impeded . | . . . . Haulers Reinforced . | . . . . Active Scanning Responses . | . . . . Cargo Convoy Interrupts . | . . . . Stealth | -11 -10 -10 -10 --------- Run | Scr Mat Min Exi Distress Signals . | . . . . Communications Jammed . | . . . . Distress Signals . | . . . . Times Spotted 21 | . 9 6 6 Peak Tracking Total 6 | . 2 2 6 Tactical Retreats 2 | . 1 . 1 Traps | -11 -10 -10 -10 ------- Run | Scr Mat Min Exi Traps Triggered 4 | . 4 . . Indirectly . | . . . . Trap Hack Attempts . | . . . . Triggered . | . . . . Disarmed . | . . . . Reprogrammed . | . . . . Reused . | . . . . Traps Extracted . | . . . . Installed . | . . . . Triggered . | . . . . Machines | -11 -10 -10 -10 ---------- Run | Scr Mat Min Exi Machines Disabled 6 | . . 2 4 Max in Single Turn 2 | . . 1 2 Machines Sabotaged . | . . . . Garrisons Compromised . | . . . . Overloaded Fab Kills . | . . . . Hacking | -11 -10 -10 -10 --------- Run | Scr Mat Min Exi Machines Accessed 12 | . 11 . 1 Terminals 8 | . 8 . . Fabricators . | . . . . Repair Stations 1 | . 1 . . Recycling Units 2 | . 2 . . Scanalyzers . | . . . . Garrison Access . | . . . . Total Hacks 34 | . 33 . 1 Successful 25 | . 24 . 1 Failed 9 | . 9 . . Catastrophic 2 | . 2 . . Database Lockouts . | . . . . Manual 23 | . 22 . 1 Terminals 25 | . 25 . . Fabricators . | . . . . Repair Stations 4 | . 4 . . Recycling Units 4 | . 4 . . Scanalyzers . | . . . . Garrison Access . | . . . . Terminal Hacks 14 | . 13 . 1 Robot Analysis 7 | . 7 . . Prototype ID Bank 2 | . 2 . . Locate Traps 2 | . 2 . . Hauler Manifests 1 | . 1 . . Registered Components 1 | . 1 . . EX-Prototype ID Bank 1 | . . . 1 Fabricator Hacks . | . . . . Repair Station Hacks 4 | . 4 . . Scan Component 2 | . 2 . . Repair 2 | . 2 . . Recycling Unit Hacks 2 | . 2 . . Retrieve Components 2 | . 2 . . Scanalyzer . | . . . . Garrison Access Hacks . | . . . . Unauthorized Hacks 5 | . 5 . . Terminals 3 | . 3 . . Botnet 3 | . 3 . . Fabricators . | . . . . Repair Stations . | . . . . Recycling Units 2 | . 2 . . Mask 2 | . 2 . . Scanalyzers . | . . . . Garrison Access . | . . . . Data Cores Recovered . | . . . . Used . | . . . . Hacking Detections 9 | . 9 . . Full Trace Events 1 | . 1 . . Feedback Events . | . . . . Feedback Blocked . | . . . . Robot Schematics Acquired . | . . . . Robots Built . | . . . . Authchips . | . . . . Time . | . . . . Total Robot Build Rating . | . . . . Part Schematics Acquired . | . . . . Parts Built . | . . . . Authchips . | . . . . Time . | . . . . Total Part Build Rating . | . . . . Parts Repaired 2 | . 2 . . Time 52 | . 52 . . Parts Recycled . | . . . . Recycled Matter . | . . . . Retrieved Matter . | . . . . Retrieved Components 11 | . 11 . . Parts Scanalyzed . | . . . . Part Schematics Acquired . | . . . . Parts Damaged . | . . . . Bothacking | -11 -10 -10 -10 ------------ Run | Scr Mat Min Exi Used RIF Installer . | . . . . Robots Hacked . | . . . . Non-combat . | . . . . Combat . | . . . . Robot Hacks Applied . | . . . . Relay Couplers Released . | . . . . Fabnet Peak Effective % . | . . . . Robots Rewired . | . . . . Allies Hacked . | . . . . Hacks Repelled . | . . . . Allies | -11 -10 -10 -10 -------- Run | Scr Mat Min Exi Total Allies . | . . . . Largest Group . | . . . . Highest-Rated Group . | . . . . Highest-Rated Ally . | . . . . Total Orders . | . . . . Ally Attacks 8 | . . . 8 Total Damage 421 | . . . 421 Kills 1 | . . . 1 Allies Corrupted . | . . . . Allies Melted . | . . . . Turrets Deployed 3 | . . . 3 Intel | -11 -10 -10 -10 ------- Run | Scr Mat Min Exi Robot Analysis Total 7 | . 7 . . Derelict Logs Recovered 2 | . . 2 . Drone Launches . | . . . . Drone Recoveries . | . . . . Exploration | -11 -10 -10 -10 ------------- Run | Scr Mat Min Exi Turns Passed 3030 | 70 1224 1166 570 Spaces Moved 1568 | 41 590 662 275 Core 61 | 12 . . 49 Treads 1507 | 29 590 662 226 Legs . | . . . . Wheels . | . . . . Hover . | . . . . Flight . | . . . . Fastest Speed 50 | 50 160 160 50 Average Speed 155 | 127 160 160 140 Slowest Speed 240 | 160 160 160 240 Overloaded Moves . | . . . . Propulsion Burnouts . | . . . . Robots Hopped . | . . . . Cave-ins Triggered . | . . . . Exploration Rate (%) 62 | 4 98 99 49 Regions Visited 3 Branch Regions 2 Pre-discovered Areas 1 | . . 1 . Known Exits Taken 3 | 1 1 1 . Unknown Exits Taken . | . . . . Scrap Searched . | . . . . Spaces Dug . | . . . . Terrain Destroyed 71 | . . . 71 Melee . | . . . . Projectile . | . . . . AOE 71 | . . . 71 Terrain Rammed . | . . . . Walls Destroyed . | . . . . Machines Disabled . | . . . . Actions | -11 -10 -10 -10 --------- Run | Scr Mat Min Exi Total 1962 | 58 831 717 356 Wait 228 | . 208 20 . Move 1565 | 40 589 661 275 Hop . | . . . . Pick Up 28 | 12 6 4 6 Fast Attach 4 | 2 2 . . Attach 12 | 4 4 1 3 Detach . | . . . . Swap 4 | . 1 . 3 Drop 12 | . . 4 8 Fire 109 | . 21 27 61 Melee . | . . . . Ram . | . . . . Kick . | . . . . Crush . | . . . . Escape Stasis . | . . . . Rewire . | . . . . Trap . | . . . . Miscellaneous . | . . . . Route ------- -11/Scrapyard -10/Materials (discovered 4 exits: *Mat x3 / *Min) -10/Mines (discovered 3 exits: *Mat x2 / *Exi) -10/Exiles History --------- Turn | Location | Event 14 | -11/Scrapyard | Identified exit to Materials 14 | -11/Scrapyard | Discovered exit to Materials (range 15) 71 | -11/Scrapyard | Entered Materials 71 | -10/Materials | Evolved 1 slot: Utility x1 316 | -10/Materials | Build established: Hacker-Mutant 472 | -10/Materials | Identified exit to Materials 472 | -10/Materials | Discovered exit to Materials (range 11) 620 | -10/Materials | Discovered exit to Materials (range 16) 1058 | -10/Materials | Discovered exit to Materials (range 10) 1129 | -10/Materials | Repaired Assault Rifle 1156 | -10/Materials | Repaired Ion Engine 1263 | -10/Materials | Identified exit to Mines 1263 | -10/Materials | Discovered exit to Mines (range 12) 1295 | -10/Materials | Entered Mines 1344 | -10/Mines | Received a Rocket Launcher from a helpful Derelict 1724 | -10/Mines | Learned location of Zion (-7) 2001 | -10/Mines | Deemed a non-threat by the Exiles lab entrance 2001 | -10/Mines | Identified exit to Exiles 2001 | -10/Mines | Discovered exit to Exiles (range 5) 2046 | -10/Mines | Discovered exit to Materials (range 13) 2089 | -10/Mines | Learned Materials terminal intel 2353 | -10/Mines | Discovered exit to Materials (range 5) 2461 | -10/Mines | Entered Exiles 2498 | -10/Exiles | Met 8R-AWN 2527 | -10/Exiles | Met EX-HEX 2573 | -10/Exiles | Met EX-BIN 2596 | -10/Exiles | Aligned with FarCom system 2597 | -10/Exiles | Given EX-Vault access code 2636 | -10/Exiles | Opened EX-Vault 2645 | -10/Exiles | Found Deploy-a-Sentry 2647 | -10/Exiles | Found Deploy-a-Sentry 2651 | -10/Exiles | Found Deploy-a-Sentry 2656 | -10/Exiles | Found 0b10 Alert Chip 2662 | -10/Exiles | Found Supersonic Drone Bay 2700 | -10/Exiles | Warned to stay clear of 0b10 Research branches 2780 | -10/Exiles | DAS Turret deployed 2790 | -10/Exiles | DAS Turret deployed 2802 | -10/Exiles | DAS Turret deployed 2824 | -10/Exiles | Attacked by the Exiles 2949 | -10/Exiles | Lost 3 parts (1p1n1w) 2949 | -10/Exiles | Core integrity fell below 50% 3007 | -10/Exiles | Released all parts (4) 3028 | -10/Exiles | Core integrity fell below 20% 3031 | -10/Exiles | Destroyed by DAS Turret with DAS Cannon Last Messages --------------- 02997_ HV Slug penetrates Earth. 03001_ System corrupted: Lgt. Treads rejected. 03001_ The unstable cave ceiling collapses. 03002_ HV Slug penetrates Wall. 03002_ Penetrated by HV Slug. 03002_ HV Slug penetrates Wall. 03003_ The unstable cave ceiling collapses. 03007_ Penetrated by HV Slug. 03007_ HV Slug penetrates Wall. 03007_ HV Slug penetrates Earth. 03007_ Released Utility Shielding. 03007_ Released Hcp. Matter Pod. 03007_ Released Med. Storage Unit. 03007_ Released Lgt. Assault Rifle. 03012_ Penetrated by HV Slug. 03012_ HV Slug penetrates Wall. 03013_ Acquired 7 matter. 03014_ Acquired 1 matter. 03017_ Acquired 9 matter. 03027_ Acquired 10 matter. Map ----- +----------------------------------------------------+ | ???????????????????????????#" #???????? | | ???????????????????????????#" ## #???????? | | ???????????????????????????#""""""?# #?####### | | ????????????????????????????#"###??# #?#"""""" | | ???????????????????????????????????# #?#"""""" | | ???????????????????????????????????# #?#"""""" | | ??????????????????????????????????## ###"" """ | | ??????????????????????????????????#" """ | | ??????????????????????????????????#" "" | | ??????????????????????????????????#" "" | | ??????????????????????????????????#" "" | | ??????????????????????????????????#" "" | | ??????????????????????????????????#" "" | | ??????????????????????????????????## "" | | ?????????????????????"?????????????# "" | | ????????????????????""?????????????#" "X" "" | | ????????????????????"" ????????????#" """ | | ???????????????????? ????????????#" """""""" | | ?????????????????????" ???????????##" ######### | | ?????????????????????# ?????????##"" #???????? | | ???????????????????#?# ###?######"" #???????? | | ??????????? """#####X# #"###""""""" ##??????? | | ??????????? """""" " "" ##???### | | ?????????? "" """ " #####"" | | ?????????? " " " | | ?????????? @ | | ??????????# % | | ???????????# | | ???????????## | | ????????????##" | | ?????????????#""" """""" | | ??????????????? ######""" | | ??????????????" ""##????#####""" | | ??????????????"" """##?????????##""" | | ??????????????" """##???????????#"""" | | ??????????????" ""#????????????#"" | | ?????????????? ???????????###"""" | | ???????????????? ???????????""" | | ?????????????????? ??????????"" | | ????????????????????? ?????????? | | ??????????????????????? ?????????? | | ???????????????????????????????????? | | ???????????????????????????????????? "" | | ????????????????????????????????????? ##""" " " | | ????????????????????????????????????? ???####""" " | | ????????????????????????????????????????????###""" | | ??????????????????????????????????????????????#### | | ?????????????????????????????????????????????????? | | ?????????????????????????????????????????????????? | | ?????????????????????????????????????????????????? | +----------------------------------------------------+ Best States ------------- Heat Dissipation 25 Energy Generation 10 Energy Capacity 250 Matter Stores 490 Matter Capacity 500 Sight Range 16 Terrain Scan Density 10 Armor Coverage 150 Resistance: KI 35 Resistance: TH 35 Resistance: EX 35 Resistance: EM 35 Resistance: I 35 Resistance: S 35 Resistance: P 35 Utility Shielding 33 Evasion (%) 50 Targeting Accuracy 5 Recoil Reduction 2 Offensive Hacking 20 Item Schematics ----------------- None Robot Schematics ------------------ None Fabricated ------------ Nothing Alien Tech Used ----------------- None Achievements -------------- None Challenges ------------ None Game ------ Seed BladeMasterPerforator Manual? 0 Play Time 00:25:21 Cumulative 52.9 hours Start 2022.04.05 @ 13:37:15 End 2022.04.05 @ 14:03:37 Sessions 1 Manual Loads 0 Difficulty Explorer Special Mode None Game No. 13 Rogue 8 Adventurer 0 Explorer 5 Win Type - Total 1 Types 1/0/0/0/0/0/0/0/0 Lore% 49 Gallery% 39 Achievement% 39 Wizard Run 0 Options --------- ASCII 0 Keyboard 0 Movement Mouse Keybinds 0 Fullscreen 1 Font 18/SmallcapsGlow Map View 76x50 Tactical HUD 1 Map Filters NONE Filters NONE Steam 1 RUN: 0747a7a7-da08-4eb7-88bd-e9fa15e7ca13